bitfinex/quotes_BTCUSD_20260125
["timestamp","ask_amount","ask_price","bid_price","bid_amount"]
[1769357261354,0.01134648,88133.0,88093.0,0.01135163]
[1769357261551,0.01134713,88128.0,88089.0,0.01135215]
[1769357261834,0.011347,88129.0,88093.0,0.01135163]
[1769357262012,0.05673566,88128.0,88089.0,0.01135215]
[1769357262286,0.01134777,88123.0,88088.0,0.00014227]
[1769357262546,0.45728506,88129.0,88093.0,0.01135163]
[1769357262757,0.0113479,88122.0,88088.0,0.00014227]
[1769357262955,0.45728506,88129.0,88088.0,0.00014227]
[1769357262956,0.01134751,88125.0,88088.0,0.01149455]
[1769357263122,0.01134738,88126.0,88088.0,0.01149455]
[1769357263325,0.45728506,88129.0,88092.0,0.01135176]
[1769357263529,0.45728506,88129.0,88088.0,0.00014227]
[1769357263711,1.10077993,88122.0,88088.0,0.00014227]
[1769357263940,0.01134803,88121.0,88088.0,0.00014227]
[1769357264205,0.01134816,88120.0,88088.0,0.00014227]
[1769357264382,0.01134803,88121.0,88088.0,0.00014227]
[1769357264558,1.11212783,88122.0,88088.0,0.00014227]
[1769357264771,0.01134803,88121.0,88088.0,0.00014227]
[1769357265023,1.11212783,88122.0,88088.0,0.00014227]
[1769357265024,1.10077993,88122.0,88088.0,0.00014227]
[1769357265223,1.10077993,88122.0,88090.0,0.01135202]
[1769357265390,1.10077993,88122.0,88088.0,0.00014227]
[1769357266160,1.10077993,88122.0,88088.0,0.01149455]
[1769357266361,0.01134816,88120.0,88088.0,0.00014227]
[1769357266564,0.01134803,88121.0,88088.0,0.00014227]
[1769357266777,1.10077993,88122.0,88089.0,0.01135215]
[1769357267001,0.22692762,88134.0,88088.0,0.00014227]
[1769357267002,1.10077993,88140.0,88097.0,0.01135112]
[1769357267211,0.01134623,88135.0,88097.0,0.01135112]
[1769357267440,0.01134623,88135.0,88090.0,0.36979312]
[1769357267441,1.10077993,88122.0,88092.0,0.16360235]
[1769357268064,0.01134674,88131.0,88118.0,0.00101295]
[1769357268413,0.01134726,88127.0,88095.0,0.00054792]
[1769357268620,1.10077993,88124.0,88094.0,0.11871027]
[1769357268823,1.10077993,88124.0,88097.0,0.001]
[1769357269057,0.45728506,88126.0,88098.0,0.01135099]
[1769357269191,0.45728506,88126.0,88097.0,0.0015479]
[1769357269410,1.11212603,88136.0,88097.0,0.0015479]
[1769357269411,0.45728506,88142.0,88109.0,0.11816235]
[1769357269624,0.45728506,88142.0,88107.0,0.01134983]
[1769357269868,0.45728506,88142.0,88114.0,0.01134893]
[1769357270067,0.45728506,88142.0,88110.0,0.01134944]
[1769357270068,0.0005997,88148.0,88112.0,0.01134919]
[1769357270243,0.0005997,88148.0,88115.0,0.0113488]
[1769357270453,0.0005997,88148.0,88113.0,0.01134906]
[1769357270654,0.0005997,88148.0,88114.0,0.01134893]
[1769357270819,0.0005997,88148.0,88112.0,0.01134919]
[1769357271019,0.0005997,88148.0,88092.0,0.04544]
[1769357271277,0.01134597,88137.0,88114.0,0.001]
[1769357271494,0.01134623,88135.0,88114.0,0.001]
[1769357271715,0.01134661,88132.0,88097.0,0.00014227]
[1769357271955,1.11212731,88126.0,88112.0,0.001]
[1769357272152,1.10077993,88126.0,88097.0,0.00014227]
[1769357272505,0.01134687,88130.0,88097.0,0.00014227]
[1769357272506,0.01134893,88114.0,88097.0,0.00014227]
[1769357272688,1.09978993,88121.0,88097.0,0.00014227]
[1769357272887,0.01134816,88120.0,88097.0,0.00014227]
[1769357273086,0.95059189,88121.0,88097.0,0.00014227]
[1769357273511,0.0113479,88122.0,88097.0,0.00014227]
[1769357273512,0.95059215,88119.0,88097.0,0.00014227]
[1769357273713,0.93924386,88119.0,88097.0,0.00014227]
[1769357273916,0.45728506,88123.0,88097.0,0.00014227]
[1769357275301,0.01134494,88145.0,88110.0,0.36979312]
[1769357275550,0.01134532,88142.0,88123.0,0.00101294]
[1769357275719,0.01134623,88135.0,88111.0,0.01095737]
[1769357275922,1.30903698,88140.0,88104.0,0.18588399]
[1769357276102,0.01134623,88135.0,88104.0,0.01097055]
[1769357276448,0.01134623,88135.0,88100.0,0.01135073]
[1769357276654,0.01134635,88134.0,88101.0,0.01097354]
[1769357276885,0.46863051,88141.0,88105.0,0.11816235]
[1769357277091,0.95058944,88140.0,88106.0,0.01097345]
[1769357277281,0.01134571,88139.0,88106.0,0.01097345]
[1769357277503,0.01134635,88134.0,88106.0,0.01097345]
[1769357277726,0.011347,88129.0,88093.0,0.12951398]
[1769357278046,0.01134777,88123.0,88091.0,0.11816235]
[1769357278250,0.01134764,88124.0,88086.0,0.11816235]
[1769357278456,0.01134816,88120.0,88086.0,0.11816235]
[1769357278609,0.93824105,88122.0,88092.0,0.04544]
[1769357279014,0.93824105,88122.0,88093.0,0.01135163]
[1769357279211,0.93824105,88122.0,88092.0,0.04544]
[1769357279466,0.94958895,88122.0,88092.0,0.04544]
[1769357279869,0.01134841,88118.0,88092.0,0.04544]
[1769357280290,0.36979312,88120.0,88088.0,0.04544]
[1769357280457,0.36979312,88120.0,88089.0,0.00050702]
[1769357280897,0.36979312,88120.0,88082.0,0.05676509]
[1769357280898,0.38114295,88107.0,88087.0,0.00050701]
[1769357281081,0.00014227,88097.0,88067.0,0.01135499]
[1769357281280,0.00014227,88097.0,88066.0,0.17495747]
[1769357281281,0.00014227,88097.0,88080.0,0.11816235]
[1769357281542,0.00014227,88097.0,88081.0,0.01135318]
[1769357281834,0.01135035,88103.0,88064.0,0.01135537]
[1769357282031,0.9383819,88102.0,88073.0,0.06812527]
[1769357282174,0.45728506,88105.0,88070.0,0.0113546]
[1769357282378,0.45728506,88105.0,88068.0,0.29260235]
[1769357282573,0.45728506,88105.0,88071.0,0.01135447]
[1769357282801,0.45728506,88105.0,88076.0,0.01135383]
[1769357283028,0.45728506,88105.0,88071.0,0.01135447]
[1769357283259,0.00014213,88107.0,88085.0,0.01135267]
[1769357283471,0.00014213,88107.0,88084.0,0.01135279]
[1769357283648,0.00014213,88107.0,88086.0,0.01135254]
[1769357283846,0.00014213,88107.0,88085.0,0.11816235]
[1769357283847,0.00014213,88107.0,88079.0,0.12951579]
[1769357284020,0.00014213,88107.0,88082.0,0.01135305]
[1769357284344,0.00014213,88107.0,88080.0,0.01135331]
[1769357284573,0.00014213,88107.0,88081.0,0.01135318]
[1769357284926,0.00014213,88107.0,88082.0,0.01135305]
[1769357285550,0.00014213,88107.0,88083.0,0.01135292]
[1769357286078,0.00014213,88107.0,88079.0,0.12951579]
[1769357286079,0.00014213,88107.0,88090.0,0.01135202]
[1769357286252,0.00014213,88107.0,88089.0,0.01135215]
[1769357286461,0.00014213,88107.0,88082.0,0.01135305]
[1769357286684,0.00014213,88107.0,88081.0,0.01135318]
[1769357286907,0.00014213,88107.0,88085.0,0.01135267]
[1769357287097,1.38065302,88117.0,88086.0,0.01135254]
[1769357287398,1.3807004,88117.0,88084.0,0.01135279]
[1769357287834,0.27848343,88117.0,88085.0,0.01135267]
[1769357288193,1.09793711,88116.0,88085.0,0.01135267]
[1769357288392,0.01134919,88112.0,88077.0,0.4669117]
[1769357288591,1.09793711,88106.0,88078.0,0.04544]
[1769357288798,0.01135022,88104.0,88078.0,0.04544]
[1769357288945,1.09793711,88106.0,88078.0,0.04544]
[1769357289989,0.38114128,88120.0,88078.0,0.04544]
[1769357290189,0.17444,88125.0,88078.0,0.04544]
[1769357290190,0.0113479,88122.0,88086.0,1.12609457]
[1769357290523,0.01134803,88121.0,88086.0,1.58165373]
[1769357290676,0.01134777,88123.0,88088.0,0.01135228]
[1769357290879,0.50199657,88124.0,88088.0,0.01135228]
[1769357291087,0.12324555,88123.0,88087.0,0.01135241]
[1769357291264,0.49064893,88124.0,88088.0,0.01135228]
[1769357291464,0.49064893,88124.0,88086.0,0.4669117]
[1769357291465,0.11189451,88123.0,88086.0,0.4669117]
[1769357291842,0.11189451,88123.0,88081.0,0.16360235]
[1769357291843,1.10221697,88113.0,88081.0,0.16360235]
[1769357292396,1.10221697,88113.0,88081.0,0.04544]
[1769357292596,1.10221697,88113.0,88082.0,0.00053197]
[1769357292843,4.738e-05,88117.0,88092.0,0.01135176]
[1769357292988,4.738e-05,88117.0,88094.0,0.11816235]
[1769357293192,4.738e-05,88117.0,88096.0,0.01135125]
[1769357293398,0.04544,88128.0,88106.0,0.01134996]
[1769357293684,0.06807435,88139.0,88106.0,4.738e-05]
[1769357293853,0.01134571,88139.0,88106.0,4.738e-05]
[1769357294076,0.06807507,88138.0,88106.0,4.738e-05]
[1769357294248,0.01134713,88128.0,88106.0,4.738e-05]
[1769357294447,1.09378933,88138.0,88106.0,4.738e-05]
[1769357294448,0.36979312,88120.0,88106.0,4.738e-05]
[1769357294626,0.38113999,88130.0,88106.0,4.738e-05]
[1769357294828,0.011347,88129.0,88106.0,0.00104738]
[1769357295249,1.081334,88130.0,88106.0,0.00104738]
[1769357295809,0.01134751,88125.0,88106.0,0.00104738]
[1769357295983,1.081334,88124.0,88106.0,4.738e-05]
[1769357296362,1.081334,88119.0,88106.0,4.738e-05]
[1769357296573,1.081334,88115.0,88106.0,4.738e-05]
[1769357296750,0.01134906,88113.0,88106.0,4.738e-05]
[1769357297424,1.081334,88115.0,88106.0,4.738e-05]
[1769357298574,1.07746971,88123.0,88106.0,4.738e-05]
[1769357298747,1.08881748,88123.0,88106.0,4.738e-05]
[1769357298894,1.07746971,88121.0,88106.0,4.738e-05]
[1769357300116,0.36979312,88120.0,88106.0,4.738e-05]
[1769357300324,0.01134919,88112.0,88072.0,0.01135434]
[1769357300493,1.07746971,88108.0,88078.0,0.11816235]
[1769357300673,1.08881941,88108.0,88074.0,0.04544]
[1769357300878,1.07746971,88108.0,88078.0,0.11816235]
[1769357301665,1.07746971,88106.0,88075.0,0.48659364]
[1769357301838,0.01135009,88105.0,88075.0,0.48659364]
[1769357302013,0.01135022,88104.0,88075.0,0.48659364]
[1769357302227,1.07746971,88106.0,88075.0,0.48659364]
[1769357302429,0.01135009,88105.0,88075.0,0.48659364]
[1769357302606,0.0113497,88108.0,88075.0,0.48659364]
[1769357302788,0.36979312,88110.0,88075.0,0.48659364]
[1769357302789,0.36979312,88110.0,88076.0,1.09057785]
[1769357302990,0.0001129,88112.0,88081.0,0.11816235]
[1769357303192,0.01146209,88112.0,88082.0,1.57717149]
[1769357303449,0.0001129,88112.0,88082.0,1.57717149]
[1769357304506,0.0001129,88112.0,88084.0,0.01135279]
[1769357304696,0.0001129,88112.0,88082.0,1.57717149]
[1769357304697,0.06809128,88117.0,88082.0,1.57717149]
[1769357304896,0.00010216,88117.0,88082.0,1.58852454]
[1769357305202,0.88512564,88117.0,88083.0,0.01135292]
[1769357305407,0.88512564,88117.0,88081.0,0.12951553]
[1769357305408,0.00010216,88117.0,88088.0,1.10193013]
[1769357305607,0.00010216,88117.0,88081.0,0.11816235]
[1769357305608,0.00010216,88117.0,88095.0,1.2087402]
[1769357306435,0.00010216,88117.0,88095.0,1.09057785]
[1769357306807,0.00010216,88117.0,88102.0,0.01135048]
[1769357307029,0.00010216,88117.0,88101.0,0.04544]
[1769357307471,0.87200728,88117.0,88083.0,0.48659364]
[1769357307688,0.87200728,88117.0,88059.0,0.45423641]
[1769357307689,0.01134932,88111.0,88060.0,0.36979312]
[1769357307905,0.36979312,88100.0,88076.0,0.01135383]
[1769357308124,0.45819902,88110.0,88078.0,1.09057785]
[1769357308125,0.82799214,88110.0,88078.0,1.09057785]
[1769357308340,0.82799214,88110.0,88078.0,1.10193142]
[1769357308559,0.70969509,88109.0,88078.0,1.09057785]
[1769357308780,1.07948821,88120.0,88084.0,0.48659364]
[1769357308999,0.01134829,88119.0,88086.0,0.48659364]
[1769357309242,1.26527637,88120.0,88086.0,0.48659364]
[1769357309457,1.25392821,88120.0,88088.0,0.01135228]
[1769357309674,1.25368624,88120.0,88090.0,0.01135202]
[1769357309878,1.07924624,88120.0,88090.0,0.01135202]
[1769357310097,1.07924624,88120.0,88092.0,0.01135176]
[1769357310517,1.07924624,88120.0,88091.0,0.49794553]
[1769357310518,1.07924624,88120.0,88091.0,0.48659364]
[1769357311157,1.07924624,88120.0,88091.0,0.49794553]
[1769357311364,1.07924624,88120.0,88092.0,0.01135176]
[1769357311578,1.07924624,88120.0,88093.0,0.01135163]
[1769357311791,0.36955115,88120.0,88096.0,0.01135125]
[1769357312015,0.0002377,88123.0,88100.0,1.10192858]
[1769357312223,0.0002377,88123.0,88105.0,0.01135009]
[1769357312473,0.0002377,88123.0,88106.0,0.01134996]
[1769357312723,0.0001,88117.0,88108.0,0.0113497]
[1769357312963,0.17444,88143.0,88123.0,8.966e-05]
[1769357313200,0.17491381,88143.0,88116.0,0.01134867]
[1769357313428,0.17491381,88143.0,88115.0,1.09425646]
[1769357313429,0.17491381,88143.0,88115.0,1.58373623]
[1769357313672,0.17491381,88143.0,88115.0,1.57238743]
[1769357313879,0.17491381,88143.0,88111.0,0.01134932]
[1769357313880,0.71162393,88142.0,88107.0,0.01134983]
[1769357314095,0.11160278,88141.0,88110.0,0.01134944]
[1769357314312,0.71162393,88142.0,88114.0,0.01134893]
[1769357314527,0.71162393,88142.0,88116.0,0.01134867]
[1769357314753,0.17491381,88143.0,88118.0,0.05674209]
[1769357314975,0.17491381,88143.0,88125.0,1.08290766]
[1769357314976,0.00047381,88143.0,88125.0,1.08290766]
[1769357315630,0.00047381,88143.0,88123.0,0.50082754]
[1769357315850,0.00047381,88143.0,88123.0,0.48947977]
[1769357316059,0.00047381,88143.0,88123.0,0.50082754]
[1769357316273,0.00047381,88143.0,88125.0,1.08290766]
[1769357316759,0.00047381,88143.0,88127.0,0.01134726]
[1769357316897,0.00047381,88143.0,88125.0,1.57238743]
[1769357317554,0.0098,88125.0,88110.0,0.48947977]
[1769357318064,0.0098,88125.0,88111.0,0.00032573]
[1769357318912,0.00047381,88143.0,88117.0,0.01134854]
[1769357319057,0.00047381,88143.0,88119.0,0.66391977]
[1769357319462,0.00047381,88143.0,88120.0,0.01134816]
[1769357319679,0.00047381,88143.0,88122.0,1.57238743]
[1769357319873,0.74920283,88139.0,88120.0,0.1744]
[1769357320644,0.47054532,88142.0,88120.0,0.1744]
[1769357321125,0.00047381,88143.0,88120.0,0.1744]
[1769357321697,0.00047381,88143.0,88121.0,0.01134803]
[1769357321904,0.00047381,88143.0,88122.0,0.48947977]
[1769357322100,0.00047381,88143.0,88125.0,1.08290766]
[1769357322249,0.00047381,88143.0,88125.0,0.01134751]
[1769357322451,0.00047381,88143.0,88126.0,0.48947977]
[1769357322652,0.00047381,88143.0,88128.0,0.48947977]
[1769357323065,0.00047381,88143.0,88118.0,0.06809001]
[1769357323260,0.00047381,88143.0,88125.0,0.01134751]
[1769357323565,0.00047381,88143.0,88125.0,1.08290766]
[1769357324305,0.00047381,88143.0,88124.0,0.01134764]
[1769357324306,0.36955115,88140.0,88111.0,0.01134932]
[1769357324558,0.01134597,88137.0,88112.0,0.00107411]
[1769357324756,0.74920283,88129.0,88106.0,0.1744]
[1769357324955,0.74920283,88129.0,88105.0,0.0454]
[1769357325164,0.74920283,88129.0,88098.0,0.48947977]
[1769357325165,0.76054983,88129.0,88098.0,0.48947977]
[1769357325320,0.76054983,88129.0,88078.0,0.11816235]
[1769357325321,0.74920283,88119.0,88090.0,0.1744]
[1769357325520,0.47054532,88117.0,88091.0,0.00135183]
[1769357325889,0.47054532,88117.0,88082.0,0.50083282]
[1769357325890,0.79559223,88116.0,88087.0,0.1744]
[1769357326100,0.79559223,88116.0,88088.0,0.01182134]
[1769357326308,0.79559223,88116.0,88088.0,0.00046906]
[1769357326513,0.47054532,88117.0,88082.0,0.1744]
[1769357326514,0.7957564,88109.0,88082.0,0.1744]
[1769357327051,0.7957564,88109.0,88082.0,0.17450216]
[1769357327804,0.7957564,88109.0,88082.0,0.18585521]
[1769357328006,0.7957564,88107.0,88082.0,0.00010216]
[1769357329173,0.7957564,88107.0,88083.0,0.00097663]
[1769357329994,0.47054532,88113.0,88083.0,0.00097663]
[1769357330199,0.48189438,88113.0,88083.0,0.00097663]
[1769357330399,0.7957564,88112.0,88083.0,0.01002453]
[1769357330560,0.48189438,88113.0,88083.0,0.01002453]
[1769357330561,0.01135009,88105.0,88083.0,0.01002453]
[1769357330765,0.0113497,88108.0,88083.0,0.01002478]
[1769357331257,0.4262984,88110.0,88083.0,0.01002478]
[1769357331258,0.36955115,88110.0,88083.0,0.01002478]
[1769357331542,0.7957564,88112.0,88083.0,0.01002478]
[1769357331745,0.01234829,88119.0,88084.0,0.48947977]
[1769357331877,0.7957564,88116.0,88085.0,0.02137722]
[1769357332112,0.001,88119.0,88089.0,0.01135215]
[1769357332326,0.001,88119.0,88095.0,1.57238743]
[1769357333124,0.01134571,88139.0,88105.0,0.48947977]
[1769357333334,0.020736,88141.0,88108.0,1.08290766]
[1769357333531,0.47054532,88142.0,88109.0,0.48947977]
[1769357333741,0.48189064,88142.0,88111.0,0.48947977]
[1769357334084,0.47054532,88142.0,88112.0,0.00143166]
[1769357334262,0.48189064,88142.0,88112.0,0.00143166]
[1769357334461,0.48189064,88142.0,88106.0,0.01134996]
[1769357334462,0.36955115,88130.0,88097.0,0.01135112]
[1769357334669,0.36955115,88130.0,88104.0,0.11816235]
[1769357334874,0.79700631,88131.0,88100.0,0.01135073]
[1769357335205,0.47054532,88136.0,88105.0,0.12951244]
[1769357335364,0.47054532,88136.0,88102.0,1.08290766]
[1769357335568,0.47054532,88136.0,88103.0,0.11816235]
[1769357336070,0.47054532,88136.0,88103.0,0.60764212]
[1769357336270,0.48189142,88136.0,88103.0,0.60764212]
[1769357336466,0.47054532,88136.0,88103.0,0.60764212]
[1769357336666,0.47054532,88136.0,88104.0,0.48947977]
[1769357336869,0.47054532,88136.0,88105.0,1.57238743]
[1769357337071,0.47054532,88136.0,88106.0,1.08290766]
[1769357337270,0.47054532,88136.0,88107.0,0.00050865]
[1769357338061,0.79668123,88115.0,88081.0,0.48947977]
[1769357338261,0.79668123,88115.0,88084.0,1.08290766]
[1769357338429,0.79668123,88115.0,88085.0,0.00113541]
[1769357338631,0.79668123,88115.0,88085.0,0.00227066]
[1769357338773,0.36955115,88120.0,88076.0,0.04544]
[1769357338774,0.36955115,88110.0,88076.0,0.04544]
[1769357338980,0.79658009,88108.0,88078.0,0.11816235]
[1769357339213,0.79658009,88108.0,88079.0,0.00227065]
[1769357339816,0.79658009,88108.0,88078.0,0.00227067]
[1769357340944,0.79658009,88108.0,88078.0,0.12043302]
[1769357341162,0.36955115,88100.0,88076.0,0.0001129]
[1769357341389,0.79658009,88096.0,88076.0,0.0001129]
[1769357341575,0.36955115,88090.0,88076.0,0.0001]
[1769357341935,0.36955115,88090.0,88059.0,0.21984]
[1769357341936,0.48189786,88086.0,88059.0,0.21984]
[1769357342138,0.81945907,88079.0,88059.0,0.21998213]
[1769357342960,0.47054532,88083.0,88059.0,0.21998213]
[1769357343408,0.81945907,88088.0,88061.0,0.01135576]
[1769357343612,0.46985144,88095.0,88061.0,0.47856211]
[1769357343792,0.1744,88099.0,88069.0,1.10877503]
[1769357344164,0.01135112,88097.0,88068.0,0.47856211]
[1769357344360,0.83073795,88098.0,88068.0,0.47856211]
[1769357344630,0.01135112,88097.0,88068.0,0.47856211]
[1769357344812,0.83073795,88098.0,88068.0,0.47856211]
[1769357344813,0.81938696,88098.0,88068.0,0.47856211]
[1769357345231,0.81938696,88098.0,88070.0,0.0113546]
[1769357345579,0.46985144,88106.0,88074.0,0.11816235]
[1769357345706,0.00050865,88105.0,88075.0,1.58733714]
[1769357346115,0.00050865,88105.0,88076.0,1.10877503]
[1769357346301,0.00050865,88105.0,88077.0,0.47856211]
[1769357346507,0.00050865,88105.0,88077.0,1.58733714]
[1769357347407,0.81938696,88107.0,88084.0,0.01135279]
[1769357347618,0.17444,88116.0,88085.0,0.01135267]
[1769357347749,0.00050865,88115.0,88089.0,1.10877503]
[1769357347952,0.00050865,88115.0,88089.0,1.58733714]
[1769357348203,0.17444,88116.0,88092.0,1.10877503]
[1769357348520,0.00050865,88120.0,88095.0,0.47856211]
[1769357348656,0.00050865,88120.0,88095.0,1.58733714]
[1769357348871,0.36955115,88110.0,88084.0,0.47856211]
[1769357349307,0.46985144,88117.0,88084.0,1.58733714]
[1769357349543,0.00050865,88116.0,88086.0,1.10877503]
[1769357349872,0.00050865,88116.0,88086.0,1.58733714]
[1769357350067,0.00050865,88116.0,88088.0,1.10877503]
[1769357350281,0.00050865,88116.0,88089.0,0.00060929]
[1769357350487,0.36955115,88110.0,88087.0,0.47856211]
[1769357350733,0.36955115,88110.0,88088.0,1.10877503]
[1769357350941,0.48119998,88117.0,88088.0,1.10877503]
[1769357351152,0.00050865,88116.0,88088.0,1.10877503]
[1769357351519,0.00050865,88116.0,88089.0,0.00113565]
[1769357352380,0.00050865,88116.0,88091.0,1.10877503]
[1769357352635,0.00050865,88119.0,88093.0,0.47856211]
[1769357352767,0.00050865,88118.0,88094.0,0.47856211]
[1769357352974,0.00011832,88120.0,88099.0,1.10877503]
[1769357353210,0.00011832,88120.0,88099.0,1.58733714]
[1769357353556,0.00011832,88120.0,88101.0,1.10877503]
[1769357354035,0.00011832,88120.0,88042.0,0.05608195]
[1769357354036,0.46985144,88147.0,88120.0,1.832e-05]
[1769357354220,0.00050865,88146.0,88120.0,1.832e-05]
[1769357354398,0.00050865,88146.0,88121.0,1.10877503]
[1769357354598,0.00050865,88146.0,88120.0,1.832e-05]
[1769357354599,0.00047387,88147.0,88124.0,0.48571862]
[1769357354826,0.00047387,88147.0,88120.0,1.832e-05]
[1769357354827,0.00047387,88147.0,88125.0,1.5488375]
[1769357355192,0.00247387,88147.0,88125.0,0.48571862]
[1769357356465,0.00047387,88147.0,88125.0,0.48571862]
[1769357359641,0.01181855,88147.0,88125.0,0.48571862]
[1769357360090,0.00047387,88147.0,88125.0,0.48571862]
[1769357360448,0.0004838,88153.0,88125.0,0.48571862]
[1769357360789,0.01134455,88148.0,88125.0,0.48571862]
[1769357360934,0.36955115,88140.0,88119.0,1.06311888]
[1769357361133,0.36955115,88140.0,88121.0,0.1744]
[1769357361358,0.36955115,88140.0,88092.0,0.01135176]
[1769357361695,0.36955115,88110.0,88092.0,0.04544]
[1769357362481,1.08365765,88109.0,88092.0,0.04544]
[1769357362738,1.08365765,88108.0,88092.0,0.04544]
[1769357362862,1.08365765,88108.0,88092.0,0.04591387]
[1769357364296,0.46196981,88109.0,88092.0,0.04591387]
[1769357365136,0.01135035,88103.0,88078.0,0.1744]
[1769357365347,1.08308952,88102.0,88078.0,0.17451832]
[1769357365546,0.46196981,88103.0,88078.0,0.17451832]
[1769357365547,0.36955115,88100.0,88078.0,0.17451832]
[1769357365896,0.0113506,88101.0,88078.0,0.00011832]
[1769357365897,1.09444167,88089.0,88078.0,0.00011832]
[1769357366101,1.08297238,88087.0,88070.0,0.045735]
[1769357366308,1.08297238,88087.0,88058.0,0.1744]
[1769357366309,0.0001,88078.0,88058.0,0.1744]
[1769357366517,1.05243848,88078.0,88058.0,0.1744]
[1769357366724,1.04108491,88078.0,88052.0,0.00111798]
[1769357366876,1.04098491,88077.0,88052.0,0.00225367]
[1769357367490,0.47332338,88078.0,88052.0,0.0003068]
[1769357367491,0.51873831,88078.0,88052.0,0.0003068]
[1769357367754,0.01135408,88074.0,88052.0,0.0003068]
[1769357367966,0.01135447,88071.0,88052.0,0.0003068]
[1769357368168,0.01135408,88074.0,88052.0,0.0003068]
[1769357368169,0.46196981,88069.0,88052.0,0.0003068]
[1769357368368,1.04098491,88065.0,88047.0,0.04544]
[1769357368593,1.04068117,88064.0,88047.0,0.04558216]
[1769357368799,1.51400635,88064.0,88047.0,0.00014216]
[1769357368971,1.50265098,88064.0,88047.0,0.00014216]
[1769357369376,0.18579486,88068.0,88047.0,0.00014216]
[1769357369377,0.17444,88068.0,88047.0,0.00014216]
[1769357369934,0.05676798,88078.0,88047.0,0.00014216]
[1769357369935,0.46196981,88089.0,88047.0,0.00014216]
[1769357370112,0.18579228,88088.0,88053.0,0.48571862]
[1769357370476,0.18579228,88088.0,88047.0,0.00014216]
[1769357370477,0.05676206,88087.0,88055.0,0.48571862]
[1769357370650,0.18579228,88088.0,88056.0,1.06311888]
[1769357370854,0.01135305,88082.0,88056.0,1.06311888]
[1769357371055,1.21512117,88088.0,88047.0,0.00014216]
[1769357371056,0.01135395,88075.0,88047.0,0.00014216]
[1769357371256,1.04068117,88076.0,88047.0,0.00014216]
[1769357371442,0.0113546,88070.0,88047.0,0.00014216]
[1769357371638,1.41067583,88070.0,88047.0,0.00014216]
[1769357371802,0.01135486,88068.0,88047.0,0.00014216]
[1769357372004,0.01135537,88064.0,88047.0,0.00014216]
[1769357372429,0.01135524,88065.0,88047.0,0.00014216]
[1769357372633,0.01135512,88066.0,88047.0,0.00014216]
[1769357372877,1.052035,88076.0,88047.0,0.00014216]
[1769357373055,0.21992,88071.0,88047.0,0.00014216]
[1769357373260,0.33152278,88071.0,88047.0,0.00014216]
[1769357373678,0.21992,88071.0,88047.0,0.00014216]
[1769357374048,0.47332376,88075.0,88047.0,0.00014216]
[1769357374286,0.17448,88070.0,88047.0,0.00014216]
[1769357374500,1.50265098,88075.0,88047.0,0.00014216]
[1769357374710,0.17448,88070.0,88047.0,0.00014216]
[1769357374927,0.11160278,88069.0,88047.0,0.00014216]
[1769357375109,0.54447466,88070.0,88047.0,0.00014216]
[1769357375316,1.51400493,88075.0,88047.0,0.00014216]
[1769357375489,0.36999466,88080.0,88049.0,0.49994816]
[1769357375490,0.17448,88074.0,88049.0,0.49994816]
[1769357375670,0.17448,88074.0,88052.0,1.03768525]
[1769357375877,0.17448,88074.0,88053.0,0.49994816]
[1769357376076,0.17448,88074.0,88054.0,1.03768525]
[1769357376274,0.17448,88078.0,88057.0,0.49994816]
[1769357376473,0.17448,88078.0,88058.0,1.03768525]
[1769357376675,0.49302582,88085.0,88058.0,1.03768525]
[1769357376948,0.01135228,88088.0,88061.0,0.49994816]
[1769357377063,0.17448,88084.0,88061.0,0.49994816]
[1769357377963,0.00890884,88084.0,88061.0,1.53763341]
[1769357378106,0.00890884,88084.0,88050.0,0.17448]
[1769357378313,0.00890884,88084.0,88058.0,1.03768525]
[1769357378543,0.00890884,88084.0,88061.0,0.49994816]
[1769357378766,0.04544,88089.0,88064.0,1.03768525]
[1769357378910,0.04544,88089.0,88068.0,1.03768525]
[1769357379108,0.04544,88089.0,88055.0,0.11816235]
[1769357379109,0.020736,88107.0,88076.0,1.03768525]
[1769357379312,0.020736,88107.0,88069.0,0.11816235]
[1769357379313,0.0113497,88108.0,88089.0,0.0098]
[1769357379634,0.21992,88115.0,88090.0,1.03768525]
[1769357379950,0.36999466,88100.0,88089.0,0.0098]
[1769357380279,0.36999466,88100.0,88080.0,0.17448]
[1769357380280,0.37013674,88100.0,88080.0,0.21992]
[1769357381956,0.07,88092.0,88080.0,0.21992]
[1769357382393,0.07,88092.0,88076.0,0.49994816]
[1769357382599,0.07,88092.0,88077.0,0.17448]
[1769357383651,0.07,88092.0,88078.0,1.03768525]
[1769357383848,0.07,88092.0,88078.0,1.53763341]
[1769357384255,0.07,88092.0,88079.0,1.03768525]
[1769357384454,0.07,88092.0,88079.0,1.53763341]
[1769357385424,0.07,88092.0,88080.0,1.03768525]
[1769357386539,0.07,88092.0,88077.0,0.17448]
[1769357388625,1.11029785,88091.0,88077.0,0.17448]
[1769357388821,1.11029785,88090.0,88077.0,0.17448]
[1769357389031,0.0002,88077.0,88052.0,1.03799205]
[1769357389208,0.0002,88077.0,88061.0,0.11816235]
[1769357389410,1.11029785,88082.0,88055.0,0.54538816]
[1769357389608,1.48029251,88080.0,88055.0,0.54538816]
[1769357390213,0.49302582,88079.0,88055.0,0.54538816]
[1769357390420,1.11029785,88078.0,88056.0,0.0113564]
[1769357390803,0.49302582,88079.0,88055.0,0.55674469]
[1769357390997,1.11029785,88096.0,88064.0,0.01135537]
[1769357391219,1.11029785,88094.0,88065.0,0.49994816]
[1769357391522,0.49302582,88091.0,88066.0,1.03768525]
[1769357391721,1.10990185,88090.0,88066.0,1.03768525]
[1769357391924,0.49302582,88091.0,88066.0,1.04904037]
[1769357392128,0.49302582,88091.0,88068.0,1.03768525]
[1769357392322,0.49302582,88091.0,88069.0,0.00937846]
[1769357392748,1.10990185,88090.0,88069.0,0.00937846]
[1769357392954,1.10990185,88089.0,88069.0,0.17448]
[1769357393383,1.10990185,88089.0,88070.0,0.00937824]
[1769357393590,0.94128547,88089.0,88070.0,0.00937824]
[1769357393985,1.43599745,88087.0,88069.0,0.17448]
[1769357394174,1.43599745,88087.0,88048.0,0.06814461]
[1769357394175,0.36999466,88080.0,88048.0,0.06814461]
[1769357394350,0.49302582,88076.0,88053.0,0.00775682]
[1769357394553,0.77013743,88075.0,88054.0,0.00889324]
[1769357395649,1.26316325,88075.0,88052.0,0.0003068]
[1769357396880,1.26316325,88075.0,88053.0,0.00901132]
[1769357398031,0.49302582,88075.0,88054.0,1.03768525]
[1769357398227,0.49302582,88075.0,88055.0,0.00901111]
[1769357398404,0.01135163,88093.0,88057.0,0.49994816]
[1769357398728,0.49302582,88091.0,88059.0,1.03768525]
[1769357399016,0.49302582,88091.0,88065.0,1.03768525]
[1769357399161,0.49302582,88091.0,88067.0,1.03768525]
[1769357399370,0.49302582,88091.0,88068.0,0.00900976]
[1769357399593,1.26316325,88091.0,88068.0,0.00900976]
[1769357400223,1.14013209,88090.0,88067.0,1.03768525]
[1769357400422,1.26316325,88090.0,88067.0,1.03768525]
[1769357400859,1.26316325,88090.0,88062.0,0.49994816]
[1769357400860,0.49302582,88090.0,88062.0,0.49994816]